fUST/lending_fUST_20240428
["ID","MTS","AMOUNT","RATE_DAILY","PERIOD"]
[323760733,1714252368607,-566.08,0.0004,31]
[323760734,1714252368633,-500.0,0.0004,31]
[323760735,1714252368660,-500.0,0.0004,31]
[323760736,1714252368686,-2929.92,0.0004,31]
[323760737,1714252368714,-13256.29,0.0004,31]
[323760738,1714252368741,-500.0,0.0004,31]
[323760739,1714252368765,-1541.4,0.0004,31]
[323760740,1714252368791,-7292.73,0.0004,31]
[323760741,1714252368819,-500.0,0.0004,31]
[323760742,1714252368845,-945.5,0.0004,31]
[323760743,1714252368870,-500.0,0.0004,31]
[323760744,1714252368984,-500.0,0.0004,31]
[323760745,1714252369011,-500.0,0.0004,31]
[323760746,1714252369039,-524.90520985,0.0004,31]
[323760747,1714252369065,-500.0,0.0004,31]
[323760748,1714252369089,-604.86840316,0.0004,31]
[323760749,1714252369113,-500.0,0.0004,31]
[323760750,1714252369140,-898.6,0.0004,31]
[323760751,1714252369163,-657.1,0.0004,31]
[323760752,1714252369189,-500.0,0.0004,31]
[323760753,1714252369213,-497.43501682,0.0004,31]
[323760754,1714252369239,-890.66,0.0004,31]
[323760755,1714252369263,-500.0,0.0004,31]
[323760756,1714252369287,-919.13,0.0004,31]
[323760757,1714252369313,-4463.18,0.0004,31]
[323760758,1714252369336,-500.0,0.0004,31]
[323760759,1714252369361,-500.0,0.0004,31]
[323760760,1714252369386,-500.0,0.0004,31]
[323760761,1714252369411,-500.0,0.0004,31]
[323760762,1714252369441,-500.0,0.0004,31]
[323760763,1714252369467,-500.0,0.0004,31]
[323760764,1714252369496,-1482.33,0.0004,31]
[323760765,1714252369521,-877.14,0.0004,31]
[323760766,1714252369546,-1504.7,0.0004,31]
[323760767,1714252369571,-500.0,0.0004,31]
[323760768,1714252369595,-1379.12,0.0004,31]
[323760769,1714252369619,-500.0,0.0004,31]
[323760770,1714252369644,-2362.37,0.0004,31]
[323760771,1714252369667,-500.0,0.0004,31]
[323760772,1714252369691,-500.0,0.0004,31]
[323760773,1714252369716,-2925.99,0.0004,31]
[323760774,1714252369740,-1740.82,0.0004,31]
[323760775,1714252369764,-500.0,0.0004,20]
[323760776,1714252369788,-855.84,0.0004,31]
[323760777,1714252369820,-500.0,0.0004,31]
[323760778,1714252369845,-902.08,0.0004,31]
[323760779,1714252369869,-1231.18,0.0004,31]
[323760780,1714252369894,-4054.59,0.0004,31]
[323760781,1714252369919,-654.33,0.0004,31]
[323760782,1714252369943,-500.0,0.0004,31]
[323760783,1714252369968,-818.38,0.0004,31]
[323760784,1714252369994,-28103.97,0.0004,31]
[323760785,1714252370017,-500.0,0.0004,31]
[323760786,1714252370041,-999.0,0.0004,38]
[323760787,1714252370066,-500.0,0.0004,31]
[323760788,1714252370091,-857.63,0.0004,31]
[323760789,1714252370115,-500.0,0.0004,31]
[323760790,1714252370141,-675.96,0.0004,31]
[323760791,1714252370166,-2220.16,0.0004,31]
[323760792,1714252370193,-500.0,0.0004,31]
[323760793,1714252370218,-500.0,0.0004,31]
[323760794,1714252370336,-500.0,0.0004,31]
[323760795,1714252370360,-500.0,0.0004,31]
[323760796,1714252370386,-500.0,0.0004,31]
[323760797,1714252370414,-500.0,0.0004,31]
[323760798,1714252370440,-500.0,0.0004,31]
[323760799,1714252370465,-5921.41,0.0004,31]
[323760800,1714252370491,-1475.85,0.0004,31]
[323760801,1714252370516,-756.39,0.0004,31]
[323760802,1714252370541,-504.37,0.0004,31]
[323760803,1714252370565,-500.0,0.0004,31]
[323760804,1714252370589,-503.84648601,0.0004,31]
[323760805,1714252370614,-1375.95,0.0004,31]
[323760806,1714252370643,-500.0,0.0004,31]
[323760807,1714252370667,-710.32,0.0004,31]
[323760808,1714252370692,-500.0,0.0004,31]
[323760809,1714252370717,-1489.54,0.0004,31]
[323760810,1714252370743,-1102.9,0.0004,31]
[323760811,1714252370767,-889.9,0.0004,31]
[323760812,1714252370791,-500.0,0.0004,31]
[323760813,1714252370817,-21659.95,0.0004,31]
[323760814,1714252370842,-519.76,0.0004,31]
[323760815,1714252370867,-595.13,0.0004,31]
[323760816,1714252370892,-3344.28,0.0004,31]
[323760817,1714252370917,-500.0,0.0004,31]
[323760818,1714252370941,-200.68728007,0.0004,31]
[323760819,1714252370967,-690.82,0.0004,31]
[323760820,1714252370992,-512.89665951,0.0004,31]
[323760821,1714252371017,-500.0,0.0004,31]
[323760822,1714252371043,-1796.37,0.0004,31]
[323760823,1714252371069,-500.0,0.0004,31]
[323760824,1714252371096,-500.0,0.0004,31]
[323760825,1714252371123,-454.01593996,0.0004,31]
[323760826,1714252371153,-500.0,0.0004,31]
[323760827,1714252371180,-753.84,0.0004,31]
[323760828,1714252371208,-500.0,0.0004,31]
[323760829,1714252371238,-500.0,0.0004,31]
[323760830,1714252371264,-525.76941682,0.0004,31]
[323760831,1714252371292,-503.10618347,0.0004,31]
[323760832,1714252371317,-500.0,0.0004,31]
[323760833,1714252371342,-500.0,0.0004,31]
[323760834,1714252371370,-36764.6,0.0004,31]
[323760835,1714252371395,-2157.54,0.0004,31]
[323760836,1714252371420,-1004.29,0.0004,31]
[323760837,1714252371451,-500.0,0.0004,31]
[323760838,1714252371479,-500.0,0.0004,31]
[323760839,1714252371507,-2765.06,0.0004,31]
[323760840,1714252371536,-500.0,0.0004,31]
[323760841,1714252371562,-2618.96,0.0004,31]
[323760842,1714252371686,-500.0,0.0004,31]
[323760843,1714252371712,-500.0,0.0004,31]
[323760844,1714252371738,-767.26,0.0004,31]
[323760845,1714252371764,-1308.84,0.0004,31]
[323760846,1714252371790,-5243.6,0.0004,21]
[323760847,1714252371815,-500.0,0.0004,31]
[323760848,1714252371839,-1551.47,0.0004,31]
[323760849,1714252371865,-500.0,0.0004,31]
[323760850,1714252371892,-1595.4,0.0004,31]
[323760851,1714252371920,-1163.33,0.0004,31]
[323760852,1714252371947,-448.05344221,0.0004,31]
[323760853,1714252371970,-1612.51,0.0004,31]
[323760854,1714252371993,-1336.15,0.0004,31]
[323760855,1714252372020,-1448.09,0.0004,31]
[323760856,1714252372047,-500.0,0.0004,31]
[323760857,1714252372073,-9678.82,0.0004,31]
[323760858,1714252372098,-762.68,0.0004,31]
[323760859,1714252372123,-516.88452514,0.0004,31]
[323760860,1714252372152,-500.0,0.0004,31]
[323760861,1714252372178,-605.0,0.0004,31]
[323760862,1714252372204,-500.0,0.0004,31]
[323760863,1714252372230,-712.0,0.0004007,35]
[323760864,1714252372256,-164.0,0.0004007,35]
[323760865,1714252372281,-712.0,0.0004008,35]
[323760866,1714252372306,-164.0,0.0004008,35]
[323760867,1714252372332,-712.0,0.0004009,35]
[323760868,1714252372356,-164.0,0.0004009,35]
[323760869,1714252372380,-1205.64140255,0.00040158,30]
[323760870,1714252372407,-160.0,0.00040158,15]
[323760871,1714252372432,-185.36405554,0.00040179,30]
[323760872,1714252372459,-200.0,0.00040203,120]
[323760873,1714252372484,-200.0,0.00040273,32]
[323760874,1714252372510,-508.95719782,0.00040273,32]
[323760875,1714252372534,-500.0,0.00040273,32]
[323760876,1714252372559,-500.0,0.00040273,32]
[323760877,1714252372584,-500.0,0.00040273,32]
[323760878,1714252372608,-523.48972429,0.00040273,32]
[323760879,1714252372633,-500.0,0.00040273,32]
[323760880,1714252372658,-500.0,0.00040273,32]
[323760881,1714252372682,-500.0,0.00040273,32]
[323760882,1714252372709,-500.0,0.00040273,32]
[323760883,1714252372735,-500.0,0.00040273,32]
[323760884,1714252372761,-2198.23,0.00040273,32]
[323760885,1714252372787,-797.6,0.00040273,32]
[323760886,1714252372812,-1102.1,0.00040273,32]
[323760887,1714252372837,-500.0,0.00040273,32]
[323760888,1714252372862,-500.0,0.00040273,32]
[323760889,1714252372991,-500.0,0.00040273,32]
[323760890,1714252373017,-500.0,0.00040273,32]
[323760891,1714252373042,-500.0,0.00040273,32]
[323760892,1714252373069,-502.0084411,0.00040273,32]
[323760893,1714252373094,-500.0,0.00040273,32]
[323760894,1714252373118,-500.0,0.00040273,32]
[323760895,1714252373143,-500.0,0.00040273,32]
[323760896,1714252373169,-500.0,0.00040273,32]
[323760897,1714252373193,-500.0,0.00040273,32]
[323760898,1714252373218,-500.0,0.00040273,32]
[323760899,1714252373242,-500.0,0.00040273,32]
[323760900,1714252373266,-500.0,0.00040273,32]
[323760901,1714252373290,-500.0,0.00040273,32]
[323760902,1714252373315,-500.0,0.00040273,32]
[323760903,1714252373339,-533.39116643,0.00040273,32]
[323760904,1714252373365,-822.51,0.00040273,32]
[323760905,1714252373389,-500.0,0.00040273,32]
[323760906,1714252373414,-500.0,0.00040273,32]
[323760907,1714252373439,-500.0,0.00040273,32]
[323760908,1714252373464,-500.0,0.00040273,32]
[323760909,1714252373489,-500.0,0.00040273,32]
[323760910,1714252373514,-500.0,0.00040273,32]
[323760911,1714252373539,-500.0,0.00040273,32]
[323760912,1714252373586,-788.14,0.00040273,32]
[323760913,1714252373637,-504.72472388,0.00040273,32]
[323760914,1714252373685,-500.0,0.00040273,32]
[323760915,1714252373729,-500.0,0.00040273,32]
[323760916,1714252373781,-500.0,0.00040273,32]
[323760917,1714252373817,-500.0,0.00040273,32]
[323760918,1714252373856,-500.0,0.00040273,32]
[323760919,1714252373896,-500.0,0.00040273,32]
[323760920,1714252373935,-500.0,0.00040273,32]
[323760921,1714252373978,-500.0,0.00040273,32]
[323760922,1714252374017,-500.0,0.00040273,32]
[323760923,1714252374059,-500.0,0.00040273,32]
[323760924,1714252374100,-500.0,0.00040273,32]
[323760925,1714252374141,-619.59,0.00040273,32]
[323760926,1714252374182,-500.0,0.00040273,32]
[323760927,1714252374222,-500.0,0.00040273,32]
[323760928,1714252374266,-500.0,0.00040273,32]
[323760929,1714252374306,-643.51,0.00040273,32]
[323760930,1714252374347,-500.0,0.00040273,32]
[323760931,1714252374377,-500.0,0.00040273,30]
[323760932,1714252374403,-500.0,0.00040273,32]
[323760933,1714252374431,-500.0,0.00040273,32]
[323760934,1714252374619,-500.0,0.00040273,32]
[323760935,1714252374654,-500.0,0.00040273,32]
[323760936,1714252374678,-506.38093133,0.00040273,32]
[323760937,1714252374701,-500.0,0.00040273,32]
[323760938,1714252374725,-505.31395016,0.00040273,32]
[323760939,1714252374751,-515.86928218,0.00040273,32]
[323760940,1714252374776,-502.35506221,0.00040273,32]
[323760941,1714252374800,-500.0,0.00040273,32]
[323760942,1714252374826,-500.0,0.00040273,32]
[323760943,1714252374849,-500.0,0.00040273,32]
[323760944,1714252374873,-500.0,0.00040273,32]
[323760945,1714252374899,-500.0,0.00040273,32]
[323760946,1714252374924,-500.0,0.00040273,32]
[323760947,1714252374948,-500.0,0.00040273,32]
[323760948,1714252374973,-500.0,0.00040273,32]
[323760949,1714252375001,-500.0,0.00040273,32]
[323760950,1714252375027,-535.97552659,0.00040273,32]
[323760951,1714252375053,-747.06,0.00040273,32]
[323760952,1714252375078,-1000.0,0.00040273,32]
[323760953,1714252375104,-500.0,0.00040273,32]
[323760954,1714252375129,-500.0,0.00040273,32]
[323760955,1714252375160,-500.0,0.00040273,32]
[323760956,1714252375184,-500.0,0.00040273,32]
[323760957,1714252375210,-500.0,0.00040273,32]
[323760958,1714252375234,-680.78,0.00040273,32]
[323760959,1714252375259,-500.0,0.00040273,32]
[323760960,1714252375284,-500.0,0.00040273,32]
[323760961,1714252375309,-500.0,0.00040273,32]
[323760962,1714252375334,-500.0,0.00040273,32]
[323760963,1714252375358,-500.0,0.00040273,32]
[323760964,1714252375382,-500.0,0.00040273,32]
[323760965,1714252375408,-500.0,0.00040273,32]
[323760966,1714252375433,-500.87517306,0.00040273,32]
[323760967,1714252375459,-500.0,0.00040273,32]
[323760968,1714252375487,-584.67558218,0.00040273,32]
[323760969,1714252375512,-500.0,0.00040273,32]
[323760970,1714252375537,-500.0,0.00040273,32]
[323760971,1714252375563,-500.0,0.00040273,32]
[323760972,1714252375587,-500.0,0.00040273,32]
[323760973,1714252375613,-532.49499956,0.00040273,32]
[323760974,1714252375642,-578.68849496,0.00040273,32]
[323760975,1714252375667,-500.0,0.00040273,32]
[323760976,1714252375692,-799.11,0.00040273,32]
[323760977,1714252375718,-1010.67,0.00040273,32]
[323760978,1714252375742,-500.0,0.00040273,32]
[323760979,1714252375767,-263.6588259,0.00040273,32]
[323760980,1714252375792,-1290.8,0.00040273,32]
[323760981,1714252375817,-540.54,0.00040273,32]
[323760982,1714252375841,-500.0,0.00040273,32]
[323760983,1714252375866,-500.0,0.00040273,32]
[323760984,1714252375893,-500.0,0.00040273,32]
[323760985,1714252375917,-500.0,0.00040273,32]
[323760986,1714252375946,-500.0,0.00040273,32]
[323760987,1714252375972,-500.0,0.00040273,32]
[323760988,1714252376000,-300.93328408,0.00040273,32]
[323760989,1714252376025,-500.0,0.00040273,32]
[323760990,1714252376051,-2791.65,0.00040273,32]
[323760991,1714252376076,-500.0,0.00040273,32]
[323760992,1714252376099,-500.0,0.00040273,32]
[323760993,1714252376122,-500.0,0.00040273,32]
[323760994,1714252376150,-500.0,0.00040273,32]
[323760995,1714252376175,-738.83,0.00040273,32]
[323760996,1714252376199,-500.0,0.00040273,32]
[323760997,1714252376225,-500.0,0.00040273,32]
[323760998,1714252376250,-500.83117781,0.00040273,32]
[323760999,1714252376370,-500.0,0.00040273,32]
[323761000,1714252376398,-500.0,0.00040273,32]
[323761001,1714252376424,-1473.62,0.00040273,32]
[323761002,1714252376450,-500.0,0.00040273,32]
[323761003,1714252376474,-500.0,0.00040273,32]
[323761004,1714252376502,-347.48422583,0.00040273,32]
[323761005,1714252376530,-500.0,0.00040273,32]
[323761006,1714252376555,-500.0,0.00040273,32]
[323761007,1714252376580,-500.0,0.00040273,32]
[323761008,1714252376606,-500.0,0.00040273,32]
[323761009,1714252376633,-830.76,0.00040273,32]
[323761010,1714252376659,-500.0,0.00040273,32]
[323761011,1714252376684,-500.0,0.00040273,32]
[323761012,1714252376711,-506.64454838,0.00040273,32]
[323761013,1714252376738,-500.0,0.00040273,32]
[323761014,1714252376764,-1327.99,0.00040273,32]
[323761015,1714252376789,-653.44,0.00040273,32]
[323761016,1714252376814,-1022.29,0.00040273,32]
[323761017,1714252376839,-891.38,0.00040273,32]
[323761018,1714252376864,-546.59,0.00040273,32]
[323761019,1714252376889,-500.0,0.00040273,32]
[323761020,1714252376917,-500.0,0.00040273,32]
[323761021,1714252376944,-500.0,0.00040273,32]
[323761022,1714252376971,-500.0,0.00040273,32]
[323761023,1714252376998,-500.0,0.00040273,32]
[323761024,1714252377023,-500.0,0.00040273,32]
[323761025,1714252377048,-500.0,0.00040273,32]
[323761026,1714252377076,-1339.82,0.00040273,32]
[323761027,1714252377100,-526.24226525,0.00040273,32]
[323761028,1714252377125,-1586.5,0.00040273,32]
[323761029,1714252377152,-500.0,0.00040273,32]
[323761030,1714252377177,-824.0,0.00040273,32]
[323761031,1714252377202,-500.0,0.00040273,32]
[323761032,1714252377230,-500.0,0.00040273,32]
[323761033,1714252377256,-500.0,0.00040273,32]
[323761034,1714252377281,-500.0,0.00040273,32]
[323761035,1714252377307,-528.48403096,0.00040273,32]
[323761036,1714252377332,-395.54359212,0.00040273,32]
[323761037,1714252377357,-500.0,0.00040273,32]
[323761038,1714252377382,-1339.73,0.00040273,32]
[323761039,1714252377407,-500.0,0.00040273,32]
[323761040,1714252377433,-722.19,0.00040273,32]
[323761041,1714252377457,-500.0,0.00040273,32]
[323761042,1714252377481,-500.0,0.00040273,32]
[323761043,1714252377505,-500.0,0.00040273,32]
[323761044,1714252377530,-500.0,0.00040273,32]
[323761045,1714252377555,-2341.24,0.00040273,32]
[323761046,1714252377579,-500.0,0.00040273,32]
[323761047,1714252377603,-500.0,0.00040273,32]
[323761048,1714252377628,-500.0,0.00040273,32]
[323761049,1714252377652,-760.85,0.00040273,32]
[323761050,1714252377676,-500.0,0.00040273,32]
[323761051,1714252377699,-637.21605292,0.00040273,32]
[323761052,1714252377724,-500.0,0.00040273,32]
[323761053,1714252377749,-500.0,0.00040273,32]
[323761054,1714252377773,-500.0,0.00040273,32]
[323761055,1714252377799,-500.0,0.00040273,32]
[323761056,1714252377824,-500.0,0.00040273,32]
[323761057,1714252377849,-535.5,0.00040273,32]
[323761058,1714252377876,-307.45845233,0.00040273,32]
[323761059,1714252377902,-500.0,0.00040273,32]
[323761060,1714252377930,-2630.40734144,0.00040273,32]
[323761061,1714252399358,-167.964317,0.00028493,120]
[323761062,1714252399388,-285.0,0.00032233,35]
[323761063,1714252399414,-285.0,0.00032243,35]
[323761064,1714252399438,-285.0,0.00032253,35]
[323761065,1714252399602,-208.27792774,0.00035,15]
[323761066,1714252399632,-510.14132169,0.00039726,30]
[323761067,1714252399656,-500.0,0.00039726,30]
[323761068,1714252399681,-12151.6,0.00039726,30]
[323761069,1714252399705,-500.0,0.00039726,30]
[323761070,1714252399730,-1162.0,0.00039726,30]
[323761071,1714252399754,-500.0,0.00039726,30]
[323761072,1714252399781,-4091.25,0.00039726,30]
[323761073,1714252399806,-500.0,0.00039726,30]
[323761074,1714252399830,-17885.03,0.00039726,30]
[323761075,1714252399853,-500.0,0.00039726,30]
[323761076,1714252399877,-1923.45,0.00039726,30]
[323761077,1714252399901,-779.96,0.00039726,30]
[323761078,1714252399926,-500.0,0.00039726,30]
[323761079,1714252399950,-285.0,0.0003997,35]
[323761080,1714252399977,-285.0,0.0003998,35]
[323761081,1714252400001,-285.0,0.0003999,35]
[323761082,1714252400027,-500.0,0.0004,31]
[323761083,1714252400052,-12151.6,0.0004,31]
[323761084,1714252400076,-500.0,0.0004,31]
[323761085,1714252400101,-1162.0,0.0004,31]
[323761086,1714252400126,-500.0,0.0004,31]
[323761087,1714252400152,-4091.25,0.0004,31]
[323761088,1714252400179,-580.46675492,0.0004,31]
[323761089,1714252400203,-17885.03,0.0004,31]
[323761090,1714252400228,-500.0,0.0004,31]
[323761091,1714252400252,-1923.45,0.0004,31]
[323761092,1714252400277,-779.96,0.0004,31]
[323761093,1714252400302,-500.0,0.0004,31]
[323761094,1714252400328,-60.49265856,0.00040273,32]
[323761095,1714252400353,-500.0,0.00040273,32]
[323761096,1714252400382,-500.0,0.00040273,32]
[323761097,1714252400406,-798.97,0.00040273,32]
[323761098,1714252400434,-500.0,0.00040273,32]
[323761099,1714252400459,-500.0,0.00040273,32]
[323761100,1714252400483,-531.35433238,0.00040273,32]
[323761101,1714252400507,-436.82203839,0.00040273,32]
[323761102,1714252400531,-899.58,0.00040273,32]
[323761103,1714252400555,-500.0,0.00040273,32]
[323761104,1714252400579,-582.02,0.00040273,32]
[323761105,1714252400603,-500.0,0.00040273,32]
[323761106,1714252400627,-722.0,0.00040273,32]
[323761107,1714252400653,-560.75,0.00040273,32]
[323761108,1714252400678,-1009.14,0.00040273,32]
[323761109,1714252400702,-604.43,0.00040273,32]
[323761110,1714252400727,-500.0,0.00040273,32]
[323761111,1714252400752,-500.0,0.00040273,32]
[323761112,1714252400780,-1161.1,0.00040273,32]
[323761113,1714252400809,-207.78853523,0.00040273,32]
[323761114,1714252400833,-500.0,0.00040273,32]
[323761115,1714252400858,-501.66604934,0.00040273,32]
[323761116,1714252400884,-828.44,0.00040273,32]
[323761117,1714252400909,-500.0,0.00040273,32]
[323761118,1714252400933,-500.0,0.00040273,32]
[323761119,1714252400959,-500.0,0.00040273,32]
[323761120,1714252400984,-707.55,0.00040273,32]
[323761121,1714252401008,-500.0,0.00040273,32]
[323761122,1714252401036,-500.0,0.00040273,32]
[323761123,1714252401065,-3277.64,0.00040273,32]
[323761124,1714252401091,-500.0,0.00040273,32]
[323761125,1714252401117,-2782.16,0.00040273,32]
[323761126,1714252401143,-500.0,0.00040273,32]
[323761127,1714252401168,-500.0,0.00040273,32]
[323761128,1714252401194,-524.23,0.00040273,32]
[323761129,1714252401221,-507.94782268,0.00040273,32]
[323761130,1714252401249,-500.0,0.00040273,32]
[323761131,1714252401278,-2381.08,0.00040273,32]
[323761132,1714252401304,-500.0,0.00040273,32]
[323761133,1714252401329,-500.0,0.00040273,32]
[323761134,1714252401353,-636.16,0.00040273,32]
[323761135,1714252401377,-1416.83,0.00040273,32]
[323761136,1714252401402,-577.52,0.00040273,32]
[323761137,1714252401427,-2057.12,0.00040273,32]
[323761138,1714252401451,-890.89,0.00040273,32]
[323761139,1714252401476,-500.0,0.00040273,32]
[323761140,1714252401501,-500.0,0.00040273,32]
[323761141,1714252401530,-500.0,0.00040273,32]
[323761142,1714252401555,-500.0,0.00040273,32]
[323761143,1714252401698,-500.0,0.00040273,32]
[323761144,1714252401723,-500.0,0.00040273,32]
[323761145,1714252401748,-500.0,0.00040273,32]
[323761146,1714252401773,-500.0,0.00040273,32]
[323761147,1714252401798,-646.92,0.00040273,32]
[323761148,1714252401823,-501.51678099,0.00040273,32]
[323761149,1714252401849,-500.0,0.00040273,32]
[323761150,1714252401875,-500.0,0.00040273,32]
[323761151,1714252401899,-151.0,0.00040273,32]
[323761152,1714252401924,-1134.45,0.00040273,32]
[323761153,1714252401948,-500.0,0.00040273,32]
[323761154,1714252401974,-500.0,0.00040273,32]
[323761155,1714252401999,-557.6,0.00040273,32]
[323761156,1714252402025,-500.0,0.00040273,32]
[323761157,1714252402050,-3418.05,0.00040273,32]
[323761158,1714252402075,-500.0,0.00040273,32]
[323761159,1714252402100,-500.0,0.00040273,32]
[323761160,1714252402125,-500.0,0.00040273,32]
[323761161,1714252402153,-500.0,0.00040273,32]
[323761162,1714252402179,-1000.0,0.00040273,30]
[323761163,1714252402203,-623.32,0.00040273,32]
[323761164,1714252402229,-500.0,0.00040273,32]
[323761165,1714252402254,-500.0,0.00040273,32]
[323761166,1714252402281,-500.0,0.00040273,32]
[323761167,1714252402305,-500.0,0.00040273,32]
[323761168,1714252402331,-500.0,0.00040273,32]
[323761169,1714252402356,-636.91,0.00040273,32]
[323761170,1714252402382,-500.0,0.00040273,32]
[323761171,1714252402407,-500.0,0.00040273,32]
[323761172,1714252402435,-500.0,0.00040273,32]
[323761173,1714252402460,-500.0,0.00040273,32]
[323761174,1714252402485,-729.51,0.00040273,32]
[323761175,1714252402511,-500.0,0.00040273,32]
[323761176,1714252402536,-500.0,0.00040273,32]
[323761177,1714252402561,-500.0,0.00040273,32]
[323761178,1714252402589,-500.0,0.00040273,32]
[323761179,1714252402617,-2360.47,0.00040273,32]
[323761180,1714252402645,-500.0,0.00040273,32]
[323761181,1714252402669,-500.0,0.00040273,32]
[323761182,1714252402694,-500.0,0.00040273,32]
[323761183,1714252402718,-500.0,0.00040273,32]
[323761184,1714252402742,-2635.33,0.00040273,32]
[323761185,1714252402767,-500.0,0.00040273,32]
[323761186,1714252402791,-308.97739263,0.00040273,32]
[323761187,1714252402815,-500.0,0.00040273,32]
[323761188,1714252402839,-673.61,0.00040273,32]
[323761189,1714252402864,-500.0,0.00040273,32]
[323761190,1714252402889,-500.0,0.00040273,32]
[323761191,1714252402913,-500.0,0.00040273,32]
[323761192,1714252402939,-500.0,0.00040273,32]
[323761193,1714252402963,-500.0,0.00040273,32]
[323761194,1714252402988,-500.0,0.00040273,32]
[323761195,1714252403012,-634.34,0.00040273,32]
[323761196,1714252403039,-200.0,0.00040273,30]
[323761197,1714252403065,-500.0,0.00040273,32]
[323761198,1714252403091,-500.0,0.00040273,32]
[323761199,1714252403116,-500.0,0.00040273,32]
[323761200,1714252403144,-500.0,0.00040273,32]
[323761201,1714252403168,-500.0,0.00040273,32]
[323761202,1714252403194,-372.74762717,0.00040273,32]
[323761203,1714252403221,-907.87,0.00040273,32]
[323761204,1714252403246,-500.0,0.00040273,32]
[323761205,1714252403275,-500.0,0.00040273,32]
[323761206,1714252403300,-500.0,0.00040273,32]
[323761207,1714252403325,-3151.11,0.00040273,32]
[323761208,1714252403350,-500.0,0.00040273,32]
[323761209,1714252403374,-691.87,0.00040273,32]
[323761210,1714252403397,-500.0,0.00040273,32]
[323761211,1714252403421,-500.0,0.00040273,32]
[323761212,1714252403446,-569.83,0.00040273,32]
[323761213,1714252403469,-500.0,0.00040273,32]
[323761214,1714252403494,-500.0,0.00040273,32]
[323761215,1714252403518,-500.0,0.00040273,32]
[323761216,1714252403542,-512.71109908,0.00040273,32]
[323761217,1714252403565,-500.0,0.00040273,32]
[323761218,1714252403591,-894.89,0.00040273,32]
[323761219,1714252403764,-555.47621308,0.00040273,32]
[323761220,1714252403789,-500.0,0.00040273,32]
[323761221,1714252403814,-2691.32,0.00040273,32]
[323761222,1714252403838,-500.0,0.00040273,32]
[323761223,1714252403863,-2415.56,0.00040273,32]
[323761224,1714252403888,-614.17,0.00040273,32]
[323761225,1714252403912,-500.0,0.00040273,32]
[323761226,1714252403937,-566.08,0.00040273,32]
[323761227,1714252403963,-500.0,0.00040273,32]
[323761228,1714252403989,-500.0,0.00040273,32]
[323761229,1714252404013,-2929.92,0.00040273,32]
[323761230,1714252404039,-500.0,0.00040273,32]
[323761231,1714252404064,-1541.4,0.00040273,32]
[323761232,1714252404087,-500.0,0.00040273,32]